Cogmind - Beta 10.1 @@@ ROGUE MODE // 2020.10.20 @ 19:46:04 Player: Cracklepappy Result: Destroyed by as-77814 with Assembled F-torch Performance ------------- Evolutions (3) 1500 Regions Visited (13) 2600 Robots Destroyed (153) 765 Value Destroyed (5201) 5201 Prototype IDs (37) 740 Alien Tech Used (0) 0 Bonus (1046) 1046 TOTAL SCORE: 11852 Bonus ------- High Alert Combat Kills 290 Follower Combat Kills 337 Entered Garrisons 400 Used RIF Installer 1000 Aligned with FarCom 300 Friendly Fire -1281 Cogmind --------- Core Integrity 0/700 Matter 235/300 Energy 170/170 System Corruption 0% Temperature Cool (29) Movement Flying (245) Ox3 Location -7/Deep Caves Parts ------- > --- POWER (1) -------- Micro Fission Core > --- PROPULSION (4) --- Improved VTOL Module > --- UTILITY (6) ------ Large Storage Unit Advanced Signal Interpreter System Shield > --- WEAPON (2) ------- Impact Mace > --- INVENTORY (10) --- Micro Fission Core High-capacity Battery (376) YI-UF0's Bottomless Matter Pit (1452) Long-range Sensor Array Long-range Sensor Array Relay Coupler [NC] (22) Remote Datajack Peak State ------------ > --- POWER ------------ Micro Fission Core > --- PROPULSION ------- Improved VTOL Module Improved Cesium-ion Thruster Improved Cesium-ion Thruster Improved Cesium-ion Thruster > --- UTILITY ---------- Large Storage Unit Long-range Sensor Array Advanced Signal Interpreter Hacking Suite System Shield Relay Coupler [NC] > --- WEAPON ----------- Impact Mace Spear > --- INVENTORY -------- Micro Fission Core Xenon Bombardment Thruster High-capacity Battery YI-UF0's Bottomless Matter Pit Long-range Sensor Array Improved Light Armor Plating Relay Coupler [NC] System Backup Module Advanced EMP Blaster Remote Datajack [Rating: 52] Favorites ----------- Power Micro Fission Core Engine Ion Engine Power Core Micro Fission Core Propulsion Improved Cesium-ion Thruster Treads Light Treads Wheel Wheel Hover Unit Cooled Airjet Flight Unit Improved Cesium-ion Thruster Utility Large Storage Unit Device Long-range Sensor Array Storage Large Storage Unit Processor Advanced Signal Interpreter Hackware Hacking Suite Protection Medium Armor Plating Weapon Spear Ballistic Gun Gauss Rifle Ballistic Cannon Gauss Cannon Launcher Grenade Launcher Special Weapon Remote Datajack Impact Weapon Impact Mace Piercing Weapon Spear Build | -11 -10 -10 -10 -9 -8 -8 -8 -8 -7 -7 -7 -7 -7 ------- Run | Scr Mat Min Exi Min Mat Gar Mat Gar Fac Low Low Zio Dee Slots Evolved 6 | . . . . . 4 . . . 2 . . . . Power . | . . . . . . . . . . . . . . Propulsion 2 | . . . . . . . . . 2 . . . . Utility 4 | . . . . . 4 . . . . . . . . Weapon . | . . . . . . . . . . . . . . Parts Attached 184 | 6 10 3 4 1 44 12 . 10 82 2 . 2 8 Power 15 | 1 2 . . . 4 . . 1 7 . . . . Engine 8 | 1 2 . . . 2 . . . 3 . . . . Core 7 | . . . . . 2 . . 1 4 . . . . Reactor . | . . . . . . . . . . . . . . Propulsion 49 | 2 1 1 1 1 11 2 . 2 27 . . . 1 Treads 31 | 1 1 1 1 1 9 2 . 2 13 . . . . Leg . | . . . . . . . . . . . . . . Wheel 1 | 1 . . . . . . . . . . . . . Hover 1 | . . . . . . . . . 1 . . . . Flight 16 | . . . . . 2 . . . 13 . . . 1 Utility 50 | 1 2 . 2 . 10 3 . 2 25 2 . 1 2 Device 8 | . . . . . . . . 1 4 2 . . 1 Storage 8 | 1 2 . 2 . 2 . . . 1 . . . . Processor 2 | . . . . . . . . . 2 . . . . Hackware 13 | . . . . . . . . . 13 . . . . Protection 19 | . . . . . 8 3 . 1 5 . . 1 1 Artifact . | . . . . . . . . . . . . . . Weapon 70 | 2 5 2 1 . 19 7 . 5 23 . . 1 5 Energy Gun . | . . . . . . . . . . . . . . Energy Cannon . | . . . . . . . . . . . . . . Ballistic Gun 30 | 2 3 2 . . 11 3 . 2 7 . . . . Ballistic Cannon 8 | . . . . . 4 1 . . 3 . . . . Launcher 16 | . 2 . 1 . 4 3 . 3 1 . . . 2 Special Weapon 6 | . . . . . . . . . 6 . . . . Impact Weapon 6 | . . . . . . . . . 4 . . 1 1 Slashing Weapon . | . . . . . . . . . . . . . . Piercing Weapon 4 | . . . . . . . . . 2 . . . 2 Special Melee Weapon . | . . . . . . . . . . . . . . Unidentified Prototypes 8 | . . . . . 3 . . . 5 . . . . Parts Lost 37 | . 2 2 . 1 7 5 . 4 7 . . . 9 Power 3 | . 1 . . . . . . 1 1 . . . . Propulsion 11 | . . . . 1 1 2 . . 3 . . . 4 Utility 10 | . . . . . 1 2 . 2 2 . . . 3 Weapon 13 | . 1 2 . . 5 1 . 1 1 . . . 2 Highest Loss Streak 9 | . 1 2 . 1 2 2 . 2 2 . . . 9 Average Slot Usage (%) 98 | . 94 100 100 99 89 91 100 99 98 100 100 100 88 Engine 3 | . 13 14 14 14 4 9 9 6 2 . . . . Core 5 | . . . . . 4 . . 2 4 7 7 7 7 Treads 9 | . 26 28 28 27 18 17 18 18 17 . . . . Flight 18 | . . . . . . . . . 12 30 30 30 28 Device 5 | . . . . . . . . 5 5 7 7 6 1 Storage 15 | . 23 28 28 28 28 36 36 36 20 7 7 7 7 Processor 4 | . . . . . . . . . 2 7 7 7 7 Hackware 14 | . . . . . . . . . 11 23 23 23 19 Protection 2 | . . . . . 15 10 18 11 2 . . . 4 Ballistic Gun 5 | . 20 28 27 14 10 15 9 8 5 . . . . Ballistic Cannon 1 | . . . . . 7 1 9 9 2 . . . . Special Weapon 2 | . . . . . . . . . 2 7 7 4 . Impact Weapon 1 | . . . . . . . . . . . . 2 1 Piercing Weapon 4 | . . . . . . . . . 2 7 7 7 3 Naked Turns . | . . . . . . . . . . . . . . Heaviest Build 132 | 12 40 40 73 73 132 132 130 130 128 28 28 29 32 Greatest Support 90 | 10 40 40 40 40 44 44 40 40 90 30 30 30 30 Greatest Overweight (x) 9 | 1 1 . 1 1 5 3 3 3 4 . . 9 3 Average Overweight (x) . | . . . . 1 1 2 3 3 . . . . . Largest Inventory Capacity 32 | 6 16 16 20 20 32 32 32 32 32 10 10 10 10 Average Capacity 15 | 5 10 16 19 20 26 32 32 32 23 10 10 10 10 Most Carried 32 | 6 13 16 20 20 32 32 28 32 32 10 10 10 10 Average Carried 15 | 3 8 15 17 19 26 29 28 28 22 10 9 9 9 Final Capacity 32 | 6 16 16 20 20 32 32 32 32 10 10 10 10 10 Final Carried 32 | 6 13 14 15 20 32 28 28 32 10 10 10 10 7 Class Distribution -------------------- 58% | Hacker-Sprinter 24% | Hauler-Mutant 7% | Mutant 4% | Bothacker-Mutant 3% | Hacker-Mutant Dominant Class ---------------- Mutant | -10/Materials Mutant | -10/Mines Hauler-Mutant | -10/Exiles Hauler-Mutant | -9/Mines Hauler-Mutant | -8/Materials Hauler-Mutant | -8/Garrison Hauler-Mutant | -8/Materials Hauler-Mutant | -8/Garrison Bothacker-Mutant | -7/Factory Hacker-Sprinter | -7/Lower Caves Hacker-Sprinter | -7/Lower Caves Hacker-Sprinter | -7/Zion Hacker-Mutant | -7/Deep Caves Resources | -11 -10 -10 -10 -9 -8 -8 -8 -8 -7 -7 -7 -7 -7 ----------- Run | Scr Mat Min Exi Min Mat Gar Mat Gar Fac Low Low Zio Dee Matter Collected 6890 | 284 329 213 . 110 1438 466 . 575 2798 164 60 453 . Remotely . | . . . . . . . . . . . . . . Salvage Created 5249 | 120 620 156 . 72 1615 566 . 585 1515 . . . . Parts 299 | 10 59 7 . 24 73 20 . 32 74 . . . . Haulers Intercepted 6 | . 1 . . . 3 . . . 2 . . . . Recyclers Shooed 2 | . . . . . 1 . . . 1 . . . . Parts Field Recycled . | . . . . . . . . . . . . . . Retrieved Matter . | . . . . . . . . . . . . . . Parts Self-Destructed 16 | . . . . . . . . . . 3 . 13 . Prevented 7 | . . . . . . . . . . . 4 3 . Kills | -11 -10 -10 -10 -9 -8 -8 -8 -8 -7 -7 -7 -7 -7 ------- Run | Scr Mat Min Exi Min Mat Gar Mat Gar Fac Low Low Zio Dee Combat Hostiles Destroyed 117 | . 20 1 . 12 31 14 . 17 22 . . . . Melee 3 | . . . . . . 3 . . . . . . . Guns 44 | . 9 1 . . 13 2 . 3 16 . . . . Cannons 26 | . . . . . 13 1 . 8 4 . . . . AOE 42 | . 11 . . 12 5 7 . 5 2 . . . . Classes Destroyed 15 | 2 6 . . . 5 . . . 2 . . . . Worker 6 | . 1 . . . 1 . . . 4 . . . . Builder 3 | . . . . . 1 . . . 2 . . . . Tunneler 2 | 2 . . . . . . . . . . . . . Hauler 6 | . 1 . . . 3 . . . 2 . . . . Recycler 5 | 1 1 . . . 1 . . . 2 . . . . Mechanic 1 | . . . . . . . . . 1 . . . . Operator 3 | . 1 . . . 1 . . . 1 . . . . Watcher 8 | . 2 . . . 3 . . . 3 . . . . Swarmer 36 | . 9 . . 12 2 4 . 4 5 . . . . Grunt 53 | . 11 1 . . 17 7 . 11 6 . . . . Brawler 3 | . . . . . 1 . . . 2 . . . . Duelist 1 | . . . . . 1 . . . . . . . . Sentry 14 | . . . . . 9 1 . 2 2 . . . . Hunter 5 | . . . . . 1 2 . . 2 . . . . Programmer 6 | . . . . . . . . . 6 . . . . Best Kill Streak 10 | 3 5 1 . 4 6 5 . 10 5 . . . . Combat Bots Only 10 | . 4 1 . 4 5 5 . 10 4 . . . . Max Kills in Single Turn 4 | 1 4 1 . 4 3 3 . 3 2 . . . . Gunslinging 1 | . 1 . . . . . . . 1 . . . . Exploded 4 | . 3 . . 4 1 3 . 3 1 . . . . Melee 1 | . . . . . . 1 . . . . . . . Uniques/NPCs Destroyed 1 | . . 1 . . . . . . . . . . . YI-UF0 (-10/Mines) Combat | -11 -10 -10 -10 -9 -8 -8 -8 -8 -7 -7 -7 -7 -7 -------- Run | Scr Mat Min Exi Min Mat Gar Mat Gar Fac Low Low Zio Dee Damage Taken 9032 | . 539 157 50 168 2121 1363 . 1173 1893 . . 54 1514 Core 1318 | . 74 23 11 20 233 118 . 134 200 . . 22 483 Absorbed by Shields 28 | . . . . . . 7 . 21 . . . . . Core Remaining (%) 53 | 100 . . . 48 . . . 11 . . . . . Volleys Fired 421 | 6 62 18 5 6 140 23 . 50 105 . . . 6 Largest 2 | 2 2 2 1 1 2 2 . 2 2 . . . 1 Hottest 96 | 40 60 40 30 30 96 76 . 76 76 . . . 36 Shots Fired 752 | 12 120 34 5 6 257 40 . 93 179 . . . 6 Gun 515 | 12 104 34 . . 165 29 . 43 128 . . . . Cannon 155 | . . . . . 87 1 . 45 22 . . . . Launcher 55 | . 16 . 5 6 5 10 . 5 2 . . . 6 Special 27 | . . . . . . . . . 27 . . . . Kinetic 670 | 12 104 34 . . 252 30 . 88 150 . . . . Thermal . | . . . . . . . . . . . . . . Explosive 34 | . 16 . 5 6 5 . . . 2 . . . . Electromagnetic 21 | . . . . . . 10 . 5 . . . . 6 Robot Hit Streak 19 | 4 19 9 . 1 15 18 . 19 19 . . . 1 Robot Miss Streak 6 | 2 4 1 . 4 5 1 . 4 6 . . . 4 Penetration Max 1 | . . . . . 1 . . 1 1 . . . . Secondary Targets 5 | . 2 . . . . . . . 3 . . . . Max Gunslinging Chain 1 | . 1 . . . . . . . 1 . . . . Shots Hit Robots 512 | 7 72 24 . 1 178 35 . 63 127 . . . 5 Core Hits 256 | 4 47 10 . 13 75 22 . 25 56 . . . 4 Critical Hits 28 | . 2 1 . . 14 1 . 2 8 . . . . Critical Kills 13 | . 1 . . . 3 1 . 2 6 . . . . Critical Parts Destroyed 14 | . 1 . . . 11 . . . 2 . . . . Melee Attacks 63 | . . . . . . . . . 46 . 5 7 5 Impact 22 | . . . . . . . . . 16 . . 5 1 Slashing . | . . . . . . . . . . . . . . Piercing 41 | . . . . . . . . . 30 . 5 2 4 Sneak Attacks 2 | . . . . . . . . . 2 . . . . Combat Hostiles . | . . . . . . . . . . . . . . Follow-up Attacks . | . . . . . . . . . . . . . . Damage Inflicted 12965 | 76 1443 289 . 593 3682 1041 . 1895 3735 . . . 211 Guns 6164 | 76 701 289 . . 1688 372 . 665 2373 . . . . Cannons 2674 | . . . . . 1485 31 . 721 437 . . . . Explosions 3509 | . 735 . . 576 477 588 . 509 536 . . . 88 Melee 501 | . . . . . . . . . 378 . . . 123 Ramming 117 | . 7 . . 17 32 50 . . 11 . . . . Kinetic 8838 | 76 701 289 . . 3173 403 . 1386 2810 . . . . Thermal 293 | . . . . 28 . 24 . . 241 . . . . Explosive 2055 | . 735 . . 548 477 . . . 295 . . . . Electromagnetic 1161 | . . . . . . 564 . 509 . . . . 88 Impact 207 | . . . . . . . . . 174 . . . 33 Slashing . | . . . . . . . . . . . . . . Piercing 294 | . . . . . . . . . 204 . . . 90 Highest Corruption 2 | . . . . . . 2 2 2 1 1 . . . Average Corruption 1 | . . . . . . 1 2 2 1 1 . . . Corruption Purged 1 | . . . . . . . . . . 1 . . . Effects 32 | . . . . . . 2 . 15 14 1 . . . Message Errors 19 | . . . . . . 1 . 7 10 1 . . . Heat Flow Errors 2 | . . . . . . . . 2 . . . . . Energy Discharges 2 | . . . . . . 1 . . 1 . . . . Data Loss (minor) 5 | . . . . . . . . 3 2 . . . . Targeting Errors 4 | . . . . . . . . 3 1 . . . . Overload Shots . | . . . . . . . . . . . . . . Overflow Damage 309 | . 25 . . 28 29 3 . 18 201 . . . 5 Projectiles 40 | . . . . . 23 . . 13 4 . . . . Explosions 122 | . 25 . . 28 6 . . 5 56 . . . 2 Melee 147 | . . . . . . 3 . . 141 . . . 3 Knockbacks 15 | . . . . . 9 . . 3 3 . . . . Impact 1 | . . . . . . . . . 1 . . . . Kinetic 12 | . . . . . 7 . . 3 2 . . . . Secondary 2 | . . . . . 2 . . . . . . . . Self-Inflicted Damage 349 | . . . . 110 . 102 . 60 43 . . . 34 Shots 15 | . . . . 4 . 5 . 3 1 . . . 2 Rammed 12 | . 3 . . 1 2 5 . . 1 . . . . Targets Rammed 14 | . 3 . . 1 2 7 . . 1 . . . . Kicked . | . . . . . . . . . . . . . . Crushed 2 | . . . . . . 2 . . . . . . . Highest Temperature 288 | . 12 19 . . 288 70 . 270 42 . . 19 63 Average Temperature 64 | . 6 9 . . 63 22 . 134 11 . . 9 25 Received Heat Transfer 2840 | . 201 84 . . 846 265 . 498 459 . . 20 467 Effects 4 | . . . . . 2 . . 2 . . . . . Interference 4 | . . . . . 2 . . 2 . . . . . Siege Activations . | . . . . . . . . . . . . . . Robots Corrupted 2 | . . . . . . 1 . 1 . . . . . Combat Hostiles 2 | . . . . . . 1 . 1 . . . . . Parts Fried 10 | . . . . . . 5 . 3 2 . . . . Impact Corruptions 7 | . . . . . . 1 . . 5 . . . 1 Robots Melted . | . . . . . . . . . . . . . . Combat Hostiles . | . . . . . . . . . . . . . . Parts Melted . | . . . . . . . . . . . . . . Heat Transferred 250 | . . . . 50 . . . . 200 . . . . Parts Sabotaged . | . . . . . . . . . . . . . . Parts Stolen . | . . . . . . . . . . . . . . Parts Stripped . | . . . . . . . . . . . . . . Power Chain Reactions 3 | . . . . . . 2 . 1 . . . . . Missiles Intercepted . | . . . . . . . . . . . . . . Alert | -11 -10 -10 -10 -9 -8 -8 -8 -8 -7 -7 -7 -7 -7 ------- Run | Scr Mat Min Exi Min Mat Gar Mat Gar Fac Low Low Zio Dee Peak Influence 820 | 15 432 115 . 180 417 526 256 601 820 . . . . Initial 315 | . 9 115 . . 46 245 256 166 315 . . . . Average 258 | 5 209 72 . 81 235 396 256 387 295 . . . . Maximum Alert Level 3 | . 2 . . . 2 2 1 2 3 . . . . Low Security (%) 30 | 100 37 100 . 100 37 . . 8 10 . . . . Level 1 54 | . 56 . . . 59 52 100 25 77 . . . . Level 2 13 | . 5 . . . 2 47 . 65 6 . . . . Level 3 2 | . . . . . . . . . 5 . . . . Level 4 . | . . . . . . . . . . . . . . Level 5 . | . . . . . . . . . . . . . . High Security . | . . . . . . . . . . . . . . Max Security . | . . . . . . . . . . . . . . Squads Dispatched 17 | . 5 . . . 4 . . . 8 . . . . Investigation 4 | . 2 . . . 1 . . . 1 . . . . Extermination 5 | . . . . . . . . . 5 . . . . Reinforcement 7 | . 3 . . . 3 . . . 1 . . . . Assault 1 | . . . . . . . . . 1 . . . . Garrison . | . . . . . . . . . . . . . . Intercept . | . . . . . . . . . . . . . . Construction Impeded 2 | . . . . . 1 . . . 1 . . . . Haulers Reinforced . | . . . . . . . . . . . . . . Stealth | -11 -10 -10 -10 -9 -8 -8 -8 -8 -7 -7 -7 -7 -7 --------- Run | Scr Mat Min Exi Min Mat Gar Mat Gar Fac Low Low Zio Dee Distress Signals 4 | . . . . . 3 . . . 1 . . . . Communications Jammed . | . . . . . . . . . . . . . . Distress Signals . | . . . . . . . . . . . . . . Times Spotted 232 | . 34 2 5 10 66 15 . 17 59 . 2 17 5 Peak Tracking Total 17 | . 6 2 9 4 7 5 . 6 5 . 2 17 6 Tactical Retreats 23 | . 2 . . . 14 1 . 1 1 . 1 2 1 Traps | -11 -10 -10 -10 -9 -8 -8 -8 -8 -7 -7 -7 -7 -7 ------- Run | Scr Mat Min Exi Min Mat Gar Mat Gar Fac Low Low Zio Dee Traps Triggered 26 | . 1 . . . 2 7 . 10 6 . . . . Indirectly 3 | . . . . . . 3 . . . . . . . Trap Hack Attempts . | . . . . . . . . . . . . . . Triggered . | . . . . . . . . . . . . . . Disarmed . | . . . . . . . . . . . . . . Reprogrammed . | . . . . . . . . . . . . . . Reused . | . . . . . . . . . . . . . . Traps Extracted . | . . . . . . . . . . . . . . Installed 2 | . . . . . . 1 . 1 . . . . . Triggered 2 | . . . . . . . . . 1 . 1 . . Exploded 3 | . . . 2 . 1 . . . . . . . . Machines | -11 -10 -10 -10 -9 -8 -8 -8 -8 -7 -7 -7 -7 -7 ---------- Run | Scr Mat Min Exi Min Mat Gar Mat Gar Fac Low Low Zio Dee Machines Disabled 29 | . 4 . 5 2 4 . . 2 12 . . . . Max in Single Turn 10 | . 2 . 2 2 1 . . 1 10 . . . . Garrison Access 4 | . . . . . . . . . 4 . . . . Garrison Relay 2 | . . . . . . . . 2 . . . . . Machines Sabotaged . | . . . . . . . . . . . . . . Garrisons Compromised . | . . . . . . . . . . . . . . Overloaded Fab Kills . | . . . . . . . . . . . . . . Fab Network Shutdowns 1 | . . . . . . . . . 1 . . . . Hacking | -11 -10 -10 -10 -9 -8 -8 -8 -8 -7 -7 -7 -7 -7 --------- Run | Scr Mat Min Exi Min Mat Gar Mat Gar Fac Low Low Zio Dee Machines Accessed 42 | . 6 . 1 . 9 . 1 . 24 1 . . . Terminals 26 | . 5 . . . 7 . . . 14 . . . . Fabricators 3 | . . . . . . . . . 3 . . . . Repair Stations 1 | . . . . . . . . . 1 . . . . Recycling Units 1 | . 1 . . . . . . . . . . . . Scanalyzers 3 | . . . . . 1 . . . 2 . . . . Garrison Access 6 | . . . . . 1 . 1 . 4 . . . . Total Hacks 95 | . 13 . 1 . 27 . 1 . 52 1 . . . Successful 56 | . 7 . 1 . 18 . 1 . 28 1 . . . Failed 38 | . 5 . . . 9 . . . 24 . . . . Catastrophic 3 | . . . . . . . . . 3 . . . . Database Lockouts 1 | . 1 . . . . . . . . . . . . Manual 35 | . 5 . 1 . 9 . . . 20 . . . . Terminals 58 | . 12 . . . 18 . . . 28 . . . . Fabricators 9 | . . . . . . . . . 9 . . . . Repair Stations 1 | . . . . . . . . . 1 . . . . Recycling Units 1 | . 1 . . . . . . . . . . . . Scanalyzers 16 | . . . . . 8 . . . 8 . . . . Garrison Access 8 | . . . . . 1 . 1 . 6 . . . . Terminal Hacks 23 | . 6 . 1 . 8 . . . 7 1 . . . Part Schematic 6 | . 1 . . . 1 . . . 4 . . . . Robot Analysis 1 | . 1 . . . . . . . . . . . . Prototype ID Bank 3 | . . . . . 3 . . . . . . . . Open Door 1 | . . . . . . . . . . 1 . . . Terminal Index 2 | . . . . . 1 . . . 1 . . . . Fabricator Index 1 | . . . . . . . . . 1 . . . . Unreport Threat 1 | . . . . . 1 . . . . . . . . Locate Traps 2 | . 2 . . . . . . . . . . . . Recall Investigation 2 | . 1 . . . . . . . 1 . . . . Hauler Manifests 2 | . 1 . . . 1 . . . . . . . . Registered Components 1 | . . . . . 1 . . . . . . . . EX-Prototype ID Bank 1 | . . . 1 . . . . . . . . . . Fabricator Hacks 5 | . . . . . . . . . 5 . . . . Load Schematic 3 | . . . . . . . . . 3 . . . . Build 2 | . . . . . . . . . 2 . . . . Repair Station Hacks . | . . . . . . . . . . . . . . Recycling Unit Hacks . | . . . . . . . . . . . . . . Scanalyzer 15 | . . . . . 8 . . . 7 . . . . Insert Component 7 | . . . . . 4 . . . 3 . . . . Analyze 8 | . . . . . 4 . . . 4 . . . . Garrison Access Hacks 7 | . . . . . 1 . 1 . 5 . . . . Unlock Access 2 | . . . . . 1 . 1 . . . . . . Seal Access 4 | . . . . . . . . . 4 . . . . Coupler Status 1 | . . . . . . . . . 1 . . . . Unauthorized Hacks 6 | . 1 . . . 1 . . . 4 . . . . Terminals 4 | . . . . . 1 . . . 3 . . . . Botnet 3 | . . . . . 1 . . . 2 . . . . Operators 1 | . . . . . . . . . 1 . . . . Fabricators . | . . . . . . . . . . . . . . Repair Stations 1 | . . . . . . . . . 1 . . . . Mechanics 1 | . . . . . . . . . 1 . . . . Recycling Units 1 | . 1 . . . . . . . . . . . . Tunnel 1 | . 1 . . . . . . . . . . . . Scanalyzers . | . . . . . . . . . . . . . . Garrison Access . | . . . . . . . . . . . . . . Data Cores Recovered 1 | . . . . . . . . . 1 . . . . Used . | . . . . . . . . . . . . . . Hacking Detections 31 | . 4 . . . 7 . . . 20 . . . . Full Trace Events 1 | . . . . . . . . . 1 . . . . Feedback Events 1 | . . . . . . . . . 1 . . . . Hackware Fried 1 | . . . . . . . . . 1 . . . . Feedback Blocked . | . . . . . . . . . . . . . . Robot Schematics Acquired . | . . . . . . . . . . . . . . Robots Built . | . . . . . . . . . . . . . . Matter . | . . . . . . . . . . . . . . Time . | . . . . . . . . . . . . . . Total Robot Build Rating . | . . . . . . . . . . . . . . Part Schematics Acquired 12 | . 1 . . . 4 . . . 7 . . . . Parts Built 4 | . . . . . . . . . 4 . . . . Matter 358 | . . . . . . . . . 358 . . . . Time 71 | . . . . . . . . . 71 . . . . Total Part Build Rating 18 | . . . . . . . . . 18 . . . . Parts Repaired . | . . . . . . . . . . . . . . Time . | . . . . . . . . . . . . . . Parts Recycled . | . . . . . . . . . . . . . . Recycled Matter . | . . . . . . . . . . . . . . Retrieved Matter . | . . . . . . . . . . . . . . Retrieved Components . | . . . . . . . . . . . . . . Parts Scanalyzed 6 | . . . . . 3 . . . 3 . . . . Part Schematics Acquired 6 | . . . . . 3 . . . 3 . . . . Parts Damaged . | . . . . . . . . . . . . . . Bothacking | -11 -10 -10 -10 -9 -8 -8 -8 -8 -7 -7 -7 -7 -7 ------------ Run | Scr Mat Min Exi Min Mat Gar Mat Gar Fac Low Low Zio Dee Used RIF Installer 2 | . . . . . . 1 . 1 . . . . . Zone Cloak 1 | . . . . . . . . 1 . . . . . Robots Hacked 15 | . . . . . . . . . 15 . . . . Non-combat 3 | . . . . . . . . . 3 . . . . Combat 12 | . . . . . . . . . 12 . . . . Robot Hacks Applied 18 | . . . . . . . . . 18 . . . . find_chute 1 | . . . . . . . . . 1 . . . . find_recycling 1 | . . . . . . . . . 1 . . . . purge_threat 4 | . . . . . . . . . 4 . . . . reboot_system 2 | . . . . . . . . . 2 . . . . formatsys_high 10 | . . . . . . . . . 10 . . . . Relay Couplers Released 9 | . . . . . . . . 7 2 . . . . Machine Destruction 9 | . . . . . . . . 7 2 . . . . Attached 8 | . . . . . . . . . 8 . . . . Robots Rewired . | . . . . . . . . . . . . . . Allies Hacked 3 | . . . . . . . . . 3 . . . . Hacks Repelled . | . . . . . . . . . . . . . . Allies | -11 -10 -10 -10 -9 -8 -8 -8 -8 -7 -7 -7 -7 -7 -------- Run | Scr Mat Min Exi Min Mat Gar Mat Gar Fac Low Low Zio Dee Total Allies 10 | . . . . . . . . . 10 . . . . Largest Group 3 | . . . . . . . . . 3 . . . . Highest-Rated Group 77 | . . . . . . . . . 77 . . . . Highest-Rated Ally 32 | . . . . . . . . . 32 . . . . Total Orders . | . . . . . . . . . . . . . . Ally Attacks 45 | . . . . . . . . . 45 . . . . Total Damage 1154 | . . . . . . . . . 1154 . . . . Kills 14 | . . . . . . . . . 14 . . . . Allies Corrupted 2 | . . . . . . . . . 2 . . . . Allies Melted . | . . . . . . . . . . . . . . Intel | -11 -10 -10 -10 -9 -8 -8 -8 -8 -7 -7 -7 -7 -7 ------- Run | Scr Mat Min Exi Min Mat Gar Mat Gar Fac Low Low Zio Dee Robot Analysis Total 1 | . 1 . . . . . . . . . . . . Derelict Logs Recovered 5 | . . . . 1 . . . . . 2 2 . . Drone Launches . | . . . . . . . . . . . . . . Drone Recoveries . | . . . . . . . . . . . . . . Exploration | -11 -10 -10 -10 -9 -8 -8 -8 -8 -7 -7 -7 -7 -7 ------------- Run | Scr Mat Min Exi Min Mat Gar Mat Gar Fac Low Low Zio Dee Turns Passed 29482 | 92 1065 660 1461 794 2609 543 29 1266 4422 304 490 15632 115 Spaces Moved 10100 | 66 585 373 809 426 1048 214 13 490 3815 519 436 1187 119 Core 88 | 4 . . . . . . . . 1 . . 83 . Treads 5045 | . 455 373 809 426 1048 214 13 490 1217 . . . . Legs . | . . . . . . . . . . . . . . Wheels 192 | 62 130 . . . . . . . . . . . . Hover . | . . . . . . . . . . . . . . Flight 4775 | . . . . . . . . . 2597 519 436 1104 119 Fastest Speed 26 | 50 90 160 160 180 180 185 220 220 26 26 26 26 26 Average Speed 111 | 84 144 160 177 180 192 201 220 220 79 26 26 59 30 Slowest Speed 500 | 90 160 160 180 180 245 220 220 220 315 26 26 500 245 Overloaded Moves . | . . . . . . . . . . . . . . Propulsion Burnouts . | . . . . . . . . . . . . . . Robots Hopped 21 | . . . . . . . . . 19 . . 2 . Cave-ins Triggered . | . . . . . . . . . . . . . . Exploration Rate (%) 57 | 3 85 89 71 79 92 42 3 68 81 64 62 41 18 Regions Visited 13 Branch Regions 7 Pre-discovered Areas 2 | . 1 . . 1 . . . . . . . . . Known Exits Taken 6 | . . . . . 1 . 1 . 1 1 1 1 . Unknown Exits Taken 5 | 1 1 1 1 1 . . . . . . . . . Scrap Searched 8 | . . 1 . 1 . . . . . 4 1 1 . Spaces Dug 34 | . . . . . 6 . . . 24 . 1 3 . Terrain Destroyed 273 | . 55 . 21 61 66 1 . . 65 . 1 3 . Melee 28 | . . . . . . . . . 24 . 1 3 . Projectile 52 | . . . . . 41 . . . 11 . . . . AOE 193 | . 55 . 21 61 25 1 . . 30 . . . . Terrain Rammed . | . . . . . . . . . . . . . . Walls Destroyed . | . . . . . . . . . . . . . . Machines Disabled . | . . . . . . . . . . . . . . Actions | -11 -10 -10 -10 -9 -8 -8 -8 -8 -7 -7 -7 -7 -7 --------- Run | Scr Mat Min Exi Min Mat Gar Mat Gar Fac Low Low Zio Dee Total 27488 | 89 692 407 834 449 1391 279 13 588 4966 686 805 16105 184 Wait 16402 | . 17 3 . . 64 13 . 2 822 166 361 14912 42 Move 10048 | 65 584 372 808 425 1048 213 13 488 3778 518 435 1182 119 Hop 19 | . . . . . . . . . 17 . . 2 . Pick Up 150 | 9 11 7 8 11 46 3 . 12 39 . 2 1 1 Fast Attach 45 | 6 2 . . . 14 . . . 23 . . . . Attach 43 | . 1 2 . 1 8 6 . 4 18 . . . 3 Detach 5 | . . . . . 1 . . . 3 . . . 1 Swap 96 | . 7 1 4 . 22 6 . 6 41 2 . 2 5 Drop 155 | 3 5 4 9 5 46 1 . 6 71 . 2 1 2 Fire 421 | 6 62 18 5 6 140 23 . 50 105 . . . 6 Melee 61 | . . . . . . . . . 46 . 5 5 5 Ram . | . . . . . . . . . . . . . . Kick . | . . . . . . . . . . . . . . Crush 14 | . 3 . . 1 2 7 . . 1 . . . . Escape Stasis 27 | . . . . . . 6 . 19 2 . . . . Rewire . | . . . . . . . . . . . . . . Trap 2 | . . . . . . 1 . 1 . . . . . Miscellaneous . | . . . . . . . . . . . . . . Route ------- -11/Scrapyard -10/Materials (discovered 4 exits: [*Mat x3] / [*Min]) -10/Mines (discovered 2 exits: [*Mat] / *Exi) -10/Exiles (discovered 2 exits: [*Min x2]) -9/Mines -8/Materials (discovered 4 exits: *Fac x3 / Gar) -8/Garrison -8/Materials -8/Garrison (discovered 3 exits: *Fac x3) -7/Factory (discovered 4 exits: *Fac x2 / *Low x2) -7/Lower Caves -7/Lower Caves (discovered 2 exits: *Fac / *Zio) -7/Zion (discovered 2 exits: *Dee / [*Pro]) -7/Deep Caves History --------- Turn | Location | Event 10 | -11/Scrapyard | Discovered new exit (range 14) 93 | -11/Scrapyard | Entered Materials 213 | -10/Materials | Discovered new exit (range 13) 308 | -10/Materials | Build established: Mutant 573 | -10/Materials | Central database locked down 606 | -10/Materials | Discovered new exit (range 4) 612 | -10/Materials | Discovered new exit (range 16) 743 | -10/Materials | Discovered new exit (range 12) 1158 | -10/Materials | Entered Mines 1159 | -10/Mines | YI-UF0 nonchalantly dropped a Grenade Launcher on the ground 1197 | -10/Mines | Destroyed YI-UF0 1207 | -10/Mines | Found Prototype Storage 1317 | -10/Mines | Discovered new exit (range 5) 1364 | -10/Mines | Found a hidden stash of uninstalled traps 1812 | -10/Mines | Deemed a non-threat by the Exiles lab entrance 1812 | -10/Mines | Discovered new exit (range 5) 1818 | -10/Mines | Entered Exiles 1858 | -10/Exiles | Met 8R-AWN 1886 | -10/Exiles | Met EX-HEX 1953 | -10/Exiles | Met EX-DEC 2231 | -10/Exiles | Discovered new exit (range 10) 2408 | -10/Exiles | Build established: Hauler-Mutant 2680 | -10/Exiles | Met EX-BIN 2710 | -10/Exiles | Aligned with FarCom system 2712 | -10/Exiles | Given EX-Vault access code 2755 | -10/Exiles | Opened EX-Vault 2770 | -10/Exiles | Found Deploy-a-Sentry 2773 | -10/Exiles | Found Deploy-a-Sentry 2778 | -10/Exiles | Found Deploy-a-Sentry 2817 | -10/Exiles | Warned to stay clear of 0b10 Research branches 2954 | -10/Exiles | Discovered new exit (range 15) 3237 | -10/Exiles | Attacked by the Exiles 3279 | -10/Exiles | Entered Mines 3417 | -9/Mines | Joined a pair of Derelicts in attacking an 0b10 outpost 3543 | -9/Mines | Learned location of 1 exit from Lower Caves 3874 | -9/Mines | Core integrity fell below 50% 3935 | -9/Mines | Discovered new exit (range 7) 4068 | -9/Mines | Learned location of Storage (-9) 4073 | -9/Mines | Entered Materials 4073 | -8/Materials | Evolved 4 slots: Utility x4 4570 | -8/Materials | Identified YI-UF0's Bottomless Matter Pit 4625 | -8/Materials | Discovered new exit (range 10) 5142 | -8/Materials | Discovered new exit (range 16) 6607 | -8/Materials | Discovered new exit (range 12) 6682 | -8/Materials | Identified exit to Garrison 6682 | -8/Materials | Entered Garrison 6692 | -8/Garrison | Installed Relay Interface Framework 6788 | -8/Garrison | Triggered checkpoint 6790 | -8/Garrison | Triggered checkpoint 6865 | -8/Garrison | Core integrity fell below 50% 7105 | -8/Garrison | Discovered new exit (range 14) 7225 | -8/Garrison | Entered Materials 7254 | -8/Materials | Identified exit to Garrison 7254 | -8/Materials | Entered Garrison 7487 | -8/Garrison | Discovered new exit (range 14) 7616 | -8/Garrison | Triggered checkpoint 7715 | -8/Garrison | Destroyed 10 combat bots 7722 | -8/Garrison | Triggered checkpoint 7808 | -8/Garrison | Discovered new exit (range 15) 8016 | -8/Garrison | Discovered new exit (range 10) 8049 | -8/Garrison | Expanded RIF knowledge: Zone Cloak 8102 | -8/Garrison | Triggered checkpoint 8132 | -8/Garrison | Garrison Relay disabled 8180 | -8/Garrison | Core integrity fell below 20% 8376 | -8/Garrison | Triggered checkpoint 8431 | -8/Garrison | Garrison Relay disabled 8520 | -8/Garrison | Entered Factory 8520 | -7/Factory | Evolved 2 slots: Propulsion x2 8813 | -7/Factory | Discovered new exit (range 9) 8863 | -7/Factory | Found Powered Armor 9589 | -7/Factory | Build established: Bothacker-Mutant 10941 | -7/Factory | Discovered new exit (range 9) 10964 | -7/Factory | First assault squad dispatched 11012 | -7/Factory | Build established: Hauler-Mutant 11181 | -7/Factory | Identified exit to Lower Caves 11529 | -7/Factory | Fabricated Adv. Signal Interpreter (x2) 11767 | -7/Factory | Discovered new exit (range 4) 11768 | -7/Factory | Identified exit to Factory 12431 | -7/Factory | Hacking Suite fried by hacking feedback 12763 | -7/Factory | Discovered exit to Factory (range 8) 12801 | -7/Factory | Fabricated Mic. Fission Core (x2) 12931 | -7/Factory | Local fabrication network quarantined 12942 | -7/Factory | Entered Lower Caves 12943 | -7/Lower Caves | Identified exit to Lower Caves 13014 | -7/Lower Caves | Build established: Hacker-Sprinter 13172 | -7/Lower Caves | Learned location of 1 exit from Proximity Caves 13204 | -7/Lower Caves | Learned 4 Factory zone layouts 13246 | -7/Lower Caves | Entered another Lower Caves area 13442 | -7/Lower Caves | Discovered exit to Factory (range 13) 13602 | -7/Lower Caves | Learned Factory non-interactive machine intel 13710 | -7/Lower Caves | Discovered new exit (range 13) 13710 | -7/Lower Caves | Learned 4 Factory zone layouts 13734 | -7/Lower Caves | Identified exit to Zion 13736 | -7/Lower Caves | Entered Zion 13750 | -7/Zion | Discovered new exit (range 13) 13791 | -7/Zion | Given the Hacking Drone Bay 15044 | -7/Zion | Build established: Hacker-Mutant 15500 | -7/Zion | Build established: Hacker-Sprinter 29315 | -7/Zion | RIF detected upon attempting to enter Zion 29315 | -7/Zion | Attacked by Zionites 29367 | -7/Zion | Discovered new exit (range 4) 29367 | -7/Zion | Saw the warning signs outside the Deep Caves entrance 29368 | -7/Zion | Identified exit to Deep Caves 29368 | -7/Zion | Entered Deep Caves 29441 | -7/Deep Caves | Attacked by Z-Imprinter 29467 | -7/Deep Caves | Core integrity fell below 50% 29476 | -7/Deep Caves | Core integrity fell below 20% 29483 | -7/Deep Caves | Destroyed by as-77814 with Assembled F-torch Last Messages --------------- 29434_ NEW_ZION: Z-Facility proximity alert. Z-Imprinter: GET AWAY FROM HERE! I've worked too hard for our future just to have you ruin everything! 29459_ Relay Coupler [NC] destroyed. 29461_ KO-TK1(z) misfires. 29462_ Dropped Hcp. Battery. 29463_ Extracted 103 energy. 29463_ Acquired Hcp. Battery. 29463_ Imp. Cesium-ion Thruster destroyed. 29464_ Destroyed Prototype Hover Unit. 29464_ Imp. Light Armor Plating destroyed. 29467_ Adv. EMP Blaster destroyed. 29467_ Hacking Suite destroyed. 29470_ Imp. Cesium-ion Thruster destroyed. 29474_ Xenon Bombardment Thruster destroyed. 29476_ X1-JY2(z) misfires. 29478_ Destroyed Prototype Protection. 29479_ Spear destroyed. 29481_ Destroyed Prototype Hover Unit. 29481_ Z-Imprinter system corrupted by crushing effect. Map ----- +----------------------------------------------------+ | | | | | | | | | | | | | | | | | | | | | | | | | | | | | | | ?????????????????????????????????????????????????? | | ####?????????????????????????????????????????????? | | ???????????????????????##???????????????????? | | ??????###??????????## ????????????????????? | | #??### ##????######; ????####??????? ????? | | ## # #??###; ;#????# ?????? #?? | | ;###; #????# ?????? ??? | | #????# #?????? ??? | | #????# #????? ???? | | #????# #?????# ???? | | @ ;#????# #?????# #???? | | """" I z #????# #?????# #???? | | ??"" za ###### #?????# #???? | | ??"" a #?????# #???? | | ??"" #???### ####? | | ?? ##### # ## | | ?""" #; # | | ??"" ###### # | | ???" ##????# ## | | ???" #?????## ## | | ???? #??????### # | | ?????? ????????## | | ????????? ?????????### | | ??????????? #??????????#### | | ????????????? ##?????????????##### | | ??????????????? #??????????????######! | | ????????????????? ?????????????## ##### | | ??????????????????? ??????????#### ## | | ????????????????????? ???????????# # | | ????????????????????????? ??????# ???????# | | ?????????????????????????????????# ??#???# | | ?????????????????????????????????# # ### | | ?????????????????????????????????# | | ?????????????????????????????????# | | ?????????????????????????????????## ### | +----------------------------------------------------+ Best States ------------- Heat Dissipation 48 Energy Generation 18 Energy Capacity 300 Matter Stores 300 Matter Capacity 1800 Sight Range 16 Robot Scan Range 20 Terrain Scan Density 10 Additional Mass Support 6 Armor Coverage 600 Utility Shielding 66 Evasion (%) 64 Recoil Reduction 4 Offensive Hacking 20 Defensive Hacking 10 Relay Coupler Types 58 Relay Coupler Value 2 Item Schematics ----------------- Lrg. Storage Unit | -10/Materials | Hacked Lgt. Nuclear Core | -8/Materials | Scanalyzed Imp. Signal Interpreter | -8/Materials | Scanalyzed Adv. Heat Sink | -8/Materials | Scanalyzed Med. Storage Unit | -8/Materials | Hacked Adv. Signal Interpreter | -7/Factory | Hacked Lrn. Sensor Array | -7/Factory | Hacked Mic. Fission Core | -7/Factory | Hacked KE Penetrator | -7/Factory | Hacked Hacking Suite | -7/Factory | Scanalyzed Adv. Weight Redist. System | -7/Factory | Scanalyzed Imp. Cesium-ion Thruster | -7/Factory | Scanalyzed Robot Schematics ------------------ None Fabricated ------------ Adv. Signal Interpreter | x2 | -7/Factory Mic. Fission Core | x2 | -7/Factory Alien Tech Used ----------------- None Achievements -------------- None Challenges ------------ None Game ------ Seed GlidesysRiotLance Manual? 0 Play Time 02:25:20 Cumulative 244.2 hours Start 2020.10.20 @ 13:53:50 End 2020.10.20 @ 19:46:04 Sessions 3 Manual Loads 0 Difficulty Rogue Special Mode None Game No. 257 Rogue 257 Adventurer 0 Explorer 0 Win Type - Total 2 Types 2/0/0/0/0/0/0/0/0 Lore% 62 Gallery% 77 Achievement% 58 Wizard Run 0 Options --------- ASCII 0 Keyboard 0 Movement Numpad Keybinds 0 Fullscreen 2 Font 24/Terminus Map View 76x50 Tactical HUD 1 Map Filters NONE Filters NONE Steam 1 RUN: 49cb672a-ae24-46cf-bf93-b9a6dcf25365